{"text_format":"1","workbook":"xlsx","n_sheets":2,"sheets":["Data Input","Analysis"],"not_rendered":{"charts":2,"images":4,"macros":1,"external_links":0,"defined_names":2,"comments":0,"pivot_tables":0},"unopened":[],"bounds":{"document_bytes":16777216,"sheet_cells":100000,"rows_first":2000,"rows_last":500,"rows_between":2000,"halvings":0,"cell_chars":16384,"cell_head_chars":4096},"cells_cut":0,"cells_raw":0,"read":"whole","date_system":"1900"}

{"sheet":"Data Input","index":0,"n_rows":25,"n_cols":7,"rows_kept":25,"cut":false,"hidden":false,"merged":[[1,2,1,6],[3,2,3,6],[19,2,24,2],[5,2,6,2],[5,3,6,3],[5,4,5,6],[7,2,12,2],[13,2,18,2]]}
[null,null,"Activity:"]
[]
[null,null,"Characteristic:"]
[]
[]
[null,null,"Operator","Part","Trial"]
[null,null,null,null,1,2,3]
[null,null,1,1]
[null,null,null,2]
[null,null,null,3]
[null,null,null,4]
[null,null,null,5]
[null,null,null,6]
[null,null,2,1]
[null,null,null,2]
[null,null,null,3]
[null,null,null,4]
[null,null,null,5]
[null,null,null,6]
[null,null,3,1]
[null,null,null,2]
[null,null,null,3]
[null,null,null,4]
[null,null,null,5]
[null,null,null,6]

{"sheet":"Analysis","index":1,"n_rows":68,"n_cols":102,"rows_kept":68,"cut":false,"hidden":false,"merged":[[26,4,26,5],[27,4,27,5],[16,1,16,5],[18,4,19,5],[21,4,22,5],[9,1,10,5],[5,1,6,5],[18,2,19,2],[21,1,22,2],[25,4,25,5]]}
[]
[]
[]
[]
[null,"Activity:"]
[null,{"$f":"IF('Data Input'!C2=\"\",\"\",'Data Input'!C2)","v":""}]
[]
[]
[null,"Characteristic:",null,null,null,null,"LSL",null,null,null,null,null,null,null,null,null,null,null,null,null,null,null,null,null,null,null,null,null,null,null,null,null,null,null,null,null,null,null,null,null,null,null,null,null,null,null,null,null,null,null,null,null,null,null,null,null,null,null,null,null,null,null,null,null,null,null,null,null,null,null,null,null,null,null,null,null,null,null,null,null,null,null,null,null,null,null,null,null,null,null,null,"Y axis min",{"$f":"setChartAxis(\"Analysis\",\"Chart 7\",\"Min\",\"Value\",\"Primary\",CS15)","v":{"$error":"#VALUE!"}}]
[null,{"$f":"IF('Data Input'!C4=\"\",\"\",'Data Input'!C4)","v":""},null,null,null,null,null,null,null,null,null,null,null,null,null,null,null,null,null,null,null,null,null,null,null,null,null,null,null,null,null,null,null,null,null,null,null,null,null,null,null,null,null,null,null,null,null,null,null,null,null,null,null,null,null,null,null,null,null,null,null,null,null,null,null,null,null,null,null,null,null,null,null,null,null,null,null,null,null,null,null,null,null,null,null,null,null,null,null,null,null,"Y axis max",{"$f":"setChartAxis(\"Analysis\",\"Chart 7\",\"Max\",\"Value\",\"Primary\",CR15)","v":{"$error":"#VALUE!"}}]
[null,null,null,null,null,null,"USL",null,null,null,null,null,null,null,null,null,null,null,null,null,null,null,null,null,null,null,null,null,null,null,null,null,null,null,null,null,null,null,null,null,null,null,null,null,null,null,null,null,null,null,null,null,null,null,null,null,null,null,null,null,null,null,null,null,null,null,null,null,null,null,null,null,null,null,null,null,null,null,null,null,null,null,null,null,null,null,null,null,null,null,null,"X axis max",{"$f":"setChartAxis(\"Analysis\",\"Chart 7\",\"Max\",\"Category\",\"Primary\",BZ68+1)","v":{"$error":"#VALUE!"}}]
[null,null,null,null,null,null,null,null,null,null,null,null,null,null,null,null,null,null,null,null,null,null,null,null,null,null,null,null,null,null,null,null,null,null,null,null,null,null,null,null,null,null,null,null,null,null,null,null,null,null,null,null,null,null,null,null,null,null,null,null,null,null,null,null,null,null,null,null,null,null,null,null,null,null,null,null,null,null,null,null,null,null,null,null,null,null,null,null,null,null,null,null,null,null,null,null,null,"Rbar",{"$f":"IF(COUNT(CX15:CX32)=0,\"\",AVERAGE(CX15:CX32))","v":""}]
[]
[null,null,null,null,null,null,null,null,null,null,null,null,null,null,null,null,null,null,null,null,null,null,null,null,null,null,null,null,null,null,null,null,null,null,null,null,null,null,null,null,null,null,null,null,null,null,null,null,null,null,null,null,null,null,null,null,null,null,null,null,null,null,null,null,null,null,null,null,null,null,null,null,null,null,"Trial","Appraiser","Column",null,"part averages (sample size of 2)","part avg (n= 3 or 2)",null,null,null,null,null,"Part avg by appr",null,null,null,"Overall avg","X axis",null,"LSL","USL","min-","max-","X axis MIN","X axis max","Range","Rbar","UCL","Range for Rbar"]
[null,null,null,null,null,null,null,null,null,null,null,null,null,null,null,null,null,null,null,null,null,null,null,null,null,null,null,null,null,null,null,null,null,null,null,null,null,null,null,null,null,null,null,null,null,null,null,null,null,null,null,null,null,null,null,null,null,null,null,null,null,null,null,null,null,null,null,null,null,null,null,null,null,null,1,1,1,1,null,null,null,null,null,null,null,{"$f":"IF(COUNTA('Data Input'!E8)=1,AVERAGE('Data Input'!E8:G8),NA())","v":{"$error":"#N/A"}},{"$f":"CH15","v":{"$error":"#N/A"}},{"$f":"CI15","v":{"$error":"#N/A"}},1,{"$f":"IF(COUNT('Data Input'!E8:G13)>0,AVERAGE('Data Input'!E8:G13),NA())","v":{"$error":"#N/A"}},{"$f":"(COUNT(CH15:CH20)/2)*3","v":0},null,{"$f":"IF(COUNTA($H$9)=1,$H$9,NA())","v":{"$error":"#N/A"}},{"$f":"IF(COUNTA($H$11)=1,$H$11,NA())","v":{"$error":"#N/A"}},{"$f":"MIN('Data Input'!$E$8:$G$25,$H$9,$H$11)-((MAX('Data Input'!$E$8:$G$25,$H$9,$H$11)-MIN('Data Input'!$E$8:$G$25,$H$9,$H$11))/4)","v":0},{"$f":"IF(CS15=0,10,MAX('Data Input'!$E$8:$G$25,$H$9,$H$11)+((MAX('Data Input'!$E$8:$G$25,$H$9,$H$11)-MIN('Data Input'!$E$8:$G$25,$H$9,$H$11))/4))","v":10},{"$f":"IF(CQ15<0,0,CQ15)","v":0},null,{"$f":"IF(COUNTA('Data Input'!E8)=1,MAX('Data Input'!E8:G8)-MIN('Data Input'!E8:G8),NA())","v":{"$error":"#N/A"}},{"$f":"AVERAGE($CX$15:$CX$32)","v":{"$error":"#DIV/0!"}},{"$f":"$CU$12*IF(COUNT('Data Input'!E8:G8)=2,3.268,2.574)","v":{"$error":"#VALUE!"}},{"$f":"IF(COUNTA('Data Input'!E8)=1,MAX('Data Input'!E8:G8)-MIN('Data Input'!E8:G8),\"\")","v":""}]
[null,null,null,null,null,null,null,null,null,null,null,null,null,null,null,null,null,null,null,null,null,null,null,null,null,null,null,null,null,null,null,null,null,null,null,null,null,null,null,null,null,null,null,null,null,null,null,null,null,null,null,null,null,null,null,null,null,null,null,null,null,null,null,null,null,null,null,null,null,null,null,null,null,null,2,1,1,2,1.5,{"$f":"IF(COUNT('Data Input'!E8:G8)=3,BZ16,IF(COUNT('Data Input'!E8:G8)<3,CA16,\"\"))","v":1.5},null,null,null,null,null,{"$f":"IF(COUNTA('Data Input'!E9)=1,AVERAGE('Data Input'!E9:G9),NA())","v":{"$error":"#N/A"}},{"$f":"CH16","v":{"$error":"#N/A"}},{"$error":"#N/A"},2,{"$f":"IF(COUNT('Data Input'!E14:G19)>0,AVERAGE('Data Input'!E14:G19),NA())","v":{"$error":"#N/A"}},{"$f":"(6+(COUNT(CH21:CH26)/2))*3","v":18},null,{"$f":"IF(COUNTA($H$9)=1,$H$9,NA())","v":{"$error":"#N/A"}},{"$f":"IF(COUNTA($H$11)=1,$H$11,NA())","v":{"$error":"#N/A"}},{"$f":"MIN('Data Input'!$E$8:$G$25,$H$9,$H$11)-((MAX('Data Input'!$E$8:$G$25,$H$9,$H$11)-MIN('Data Input'!$E$8:$G$25,$H$9,$H$11))/4)","v":0},{"$f":"IF(CS16=0,10,MAX('Data Input'!$E$8:$G$25,$H$9,$H$11)+((MAX('Data Input'!$E$8:$G$25,$H$9,$H$11)-MIN('Data Input'!$E$8:$G$25,$H$9,$H$11))/4))","v":10},{"$f":"IF(CQ16<0,0,CQ16)","v":0},null,{"$f":"IF(COUNTA('Data Input'!E9)=1,MAX('Data Input'!E9:G9)-MIN('Data Input'!E9:G9),NA())","v":{"$error":"#N/A"}},{"$f":"AVERAGE($CX$15:$CX$32)","v":{"$error":"#DIV/0!"}},{"$f":"$CU$12*IF(COUNT('Data Input'!E9:G9)=2,3.268,2.574)","v":{"$error":"#VALUE!"}},{"$f":"IF(COUNTA('Data Input'!E9)=1,MAX('Data Input'!E9:G9)-MIN('Data Input'!E9:G9),\"\")","v":""}]
[null,"MSA Summary Statistics",null,null,null,null,null,null,null,null,null,null,null,null,null,null,null,null,null,null,null,null,null,null,null,null,null,null,null,null,null,null,null,null,null,null,null,null,null,null,null,null,null,null,null,null,null,null,null,null,null,null,null,null,null,null,null,null,null,null,null,null,null,null,null,null,null,null,null,null,null,null,null,null,3,1,1,3,null,null,null,null,null,null,null,{"$f":"IF(COUNTA('Data Input'!E10)=1,AVERAGE('Data Input'!E10:G10),NA())","v":{"$error":"#N/A"}},{"$f":"CH17","v":{"$error":"#N/A"}},{"$error":"#N/A"},3,{"$f":"IF(COUNT('Data Input'!E20:G25)>0,AVERAGE('Data Input'!E20:G25),NA())","v":{"$error":"#N/A"}},{"$f":"(12+(COUNT(CH26:CH31)/2))*3","v":36},null,{"$error":"#N/A"},{"$error":"#N/A"},{"$f":"MIN('Data Input'!$E$8:$G$25,$H$9,$H$11)-((MAX('Data Input'!$E$8:$G$25,$H$9,$H$11)-MIN('Data Input'!$E$8:$G$25,$H$9,$H$11))/4)","v":0},{"$f":"IF(CS17=0,10,MAX('Data Input'!$E$8:$G$25,$H$9,$H$11)+((MAX('Data Input'!$E$8:$G$25,$H$9,$H$11)-MIN('Data Input'!$E$8:$G$25,$H$9,$H$11))/4))","v":10},0,null,{"$f":"IF(COUNTA('Data Input'!E10)=1,MAX('Data Input'!E10:G10)-MIN('Data Input'!E10:G10),NA())","v":{"$error":"#N/A"}},{"$error":"#DIV/0!"},{"$f":"$CU$12*IF(COUNT('Data Input'!E10:G10)=2,3.268,2.574)","v":{"$error":"#VALUE!"}},{"$f":"IF(COUNTA('Data Input'!E10)=1,MAX('Data Input'!E10:G10)-MIN('Data Input'!E10:G10),\"\")","v":""}]
[null,null,null,null,null,null,null,null,null,null,null,null,null,null,null,null,null,null,null,null,null,null,null,null,null,null,null,null,null,null,null,null,null,null,null,null,null,null,null,null,null,null,null,null,null,null,null,null,null,null,null,null,null,null,null,null,null,null,null,null,null,null,null,null,null,null,null,null,null,null,null,null,null,null,1,1,2,4,null,null,null,null,null,null,null,{"$f":"IF(COUNTA('Data Input'!E11)=1,AVERAGE('Data Input'!E11:G11),NA())","v":{"$error":"#N/A"}},{"$f":"CH18","v":{"$error":"#N/A"}},{"$error":"#N/A"},null,null,null,null,{"$error":"#N/A"},{"$error":"#N/A"},{"$f":"MIN('Data Input'!$E$8:$G$25,$H$9,$H$11)-((MAX('Data Input'!$E$8:$G$25,$H$9,$H$11)-MIN('Data Input'!$E$8:$G$25,$H$9,$H$11))/4)","v":0},{"$f":"IF(CS18=0,10,MAX('Data Input'!$E$8:$G$25,$H$9,$H$11)+((MAX('Data Input'!$E$8:$G$25,$H$9,$H$11)-MIN('Data Input'!$E$8:$G$25,$H$9,$H$11))/4))","v":10},0,null,{"$f":"IF(COUNTA('Data Input'!E11)=1,MAX('Data Input'!E11:G11)-MIN('Data Input'!E11:G11),NA())","v":{"$error":"#N/A"}},{"$error":"#DIV/0!"},{"$f":"$CU$12*IF(COUNT('Data Input'!E11:G11)=2,3.268,2.574)","v":{"$error":"#VALUE!"}},{"$f":"IF(COUNTA('Data Input'!E11)=1,MAX('Data Input'!E11:G11)-MIN('Data Input'!E11:G11),\"\")","v":""}]
[null,null,"R bar",null,{"$f":"CU12","v":""},null,null,null,null,null,null,null,null,null,null,null,null,null,null,null,null,null,null,null,null,null,null,null,null,null,null,null,null,null,null,null,null,null,null,null,null,null,null,null,null,null,null,null,null,null,null,null,null,null,null,null,null,null,null,null,null,null,null,null,null,null,null,null,null,null,null,null,null,null,2,1,2,5,{"$f":"BZ19-0.5","v":4.5},{"$f":"IF(COUNT('Data Input'!E9:G9)=3,BZ19,IF(COUNT('Data Input'!E9:G9)<3,CA19,\"\"))","v":4.5},null,null,null,null,null,{"$f":"IF(COUNTA('Data Input'!E12)=1,AVERAGE('Data Input'!E12:G12),NA())","v":{"$error":"#N/A"}},{"$f":"CH19","v":{"$error":"#N/A"}},{"$error":"#N/A"},null,null,null,null,{"$error":"#N/A"},{"$error":"#N/A"},{"$f":"MIN('Data Input'!$E$8:$G$25,$H$9,$H$11)-((MAX('Data Input'!$E$8:$G$25,$H$9,$H$11)-MIN('Data Input'!$E$8:$G$25,$H$9,$H$11))/4)","v":0},{"$f":"IF(CS19=0,10,MAX('Data Input'!$E$8:$G$25,$H$9,$H$11)+((MAX('Data Input'!$E$8:$G$25,$H$9,$H$11)-MIN('Data Input'!$E$8:$G$25,$H$9,$H$11))/4))","v":10},0,null,{"$f":"IF(COUNTA('Data Input'!E12)=1,MAX('Data Input'!E12:G12)-MIN('Data Input'!E12:G12),NA())","v":{"$error":"#N/A"}},{"$error":"#DIV/0!"},{"$f":"$CU$12*IF(COUNT('Data Input'!E12:G12)=2,3.268,2.574)","v":{"$error":"#VALUE!"}},{"$f":"IF(COUNTA('Data Input'!E12)=1,MAX('Data Input'!E12:G12)-MIN('Data Input'!E12:G12),\"\")","v":""}]
[null,null,null,null,null,null,null,null,null,null,null,null,null,null,null,null,null,null,null,null,null,null,null,null,null,null,null,null,null,null,null,null,null,null,null,null,null,null,null,null,null,null,null,null,null,null,null,null,null,null,null,null,null,null,null,null,null,null,null,null,null,null,null,null,null,null,null,null,null,null,null,null,null,null,3,1,2,6,null,null,null,null,null,null,null,{"$f":"IF(COUNTA('Data Input'!E13)=1,AVERAGE('Data Input'!E13:G13),NA())","v":{"$error":"#N/A"}},{"$f":"CH20","v":{"$error":"#N/A"}},{"$error":"#N/A"},null,null,null,null,{"$error":"#N/A"},{"$error":"#N/A"},{"$f":"MIN('Data Input'!$E$8:$G$25,$H$9,$H$11)-((MAX('Data Input'!$E$8:$G$25,$H$9,$H$11)-MIN('Data Input'!$E$8:$G$25,$H$9,$H$11))/4)","v":0},{"$f":"IF(CS20=0,10,MAX('Data Input'!$E$8:$G$25,$H$9,$H$11)+((MAX('Data Input'!$E$8:$G$25,$H$9,$H$11)-MIN('Data Input'!$E$8:$G$25,$H$9,$H$11))/4))","v":10},0,null,{"$f":"IF(COUNTA('Data Input'!E13)=1,MAX('Data Input'!E13:G13)-MIN('Data Input'!E13:G13),NA())","v":{"$error":"#N/A"}},{"$error":"#DIV/0!"},{"$f":"$CU$12*IF(COUNT('Data Input'!E13:G13)=2,3.268,2.574)","v":{"$error":"#VALUE!"}},{"$f":"IF(COUNTA('Data Input'!E13)=1,MAX('Data Input'!E13:G13)-MIN('Data Input'!E13:G13),\"\")","v":""}]
[null,null,null,null,null,null,null,null,null,null,null,null,null,null,null,null,null,null,null,null,null,null,null,null,null,null,null,null,null,null,null,null,null,null,null,null,null,null,null,null,null,null,null,null,null,null,null,null,null,null,null,null,null,null,null,null,null,null,null,null,null,null,null,null,null,null,null,null,null,null,null,null,null,null,1,1,3,7,null,null,null,null,null,null,null,{"$f":"IF(COUNTA('Data Input'!E14)=1,AVERAGE('Data Input'!E14:G14),NA())","v":{"$error":"#N/A"}},{"$f":"CH21","v":{"$error":"#N/A"}},{"$error":"#N/A"},null,null,null,null,{"$error":"#N/A"},{"$error":"#N/A"},{"$f":"MIN('Data Input'!$E$8:$G$25,$H$9,$H$11)-((MAX('Data Input'!$E$8:$G$25,$H$9,$H$11)-MIN('Data Input'!$E$8:$G$25,$H$9,$H$11))/4)","v":0},{"$f":"IF(CS21=0,10,MAX('Data Input'!$E$8:$G$25,$H$9,$H$11)+((MAX('Data Input'!$E$8:$G$25,$H$9,$H$11)-MIN('Data Input'!$E$8:$G$25,$H$9,$H$11))/4))","v":10},0,null,{"$f":"IF(COUNTA('Data Input'!E14)=1,MAX('Data Input'!E14:G14)-MIN('Data Input'!E14:G14),NA())","v":{"$error":"#N/A"}},{"$error":"#DIV/0!"},{"$f":"$CU$12*IF(COUNT('Data Input'!E14:G14)=2,3.268,2.574)","v":{"$error":"#VALUE!"}},{"$f":"IF(COUNTA('Data Input'!E14)=1,MAX('Data Input'!E14:G14)-MIN('Data Input'!E14:G14),\"\")","v":""}]
[null,"σrepeatability",null,null,{"$f":"IF(COUNTA('Data Input'!E8:G8)=3,CU12/1.693,IF(COUNTA('Data Input'!E8:G8)=2,CU12/1.128,\"\"))","v":""},null,null,null,null,null,null,null,null,null,null,null,null,null,null,null,null,null,null,null,null,null,null,null,null,null,null,null,null,null,null,null,null,null,null,null,null,null,null,null,null,null,null,null,null,null,null,null,null,null,null,null,null,null,null,null,null,null,null,null,null,null,null,null,null,null,null,null,null,null,2,1,3,8,{"$f":"BZ22-0.5","v":7.5},{"$f":"IF(COUNT('Data Input'!E10:G10)=3,BZ22,IF(COUNT('Data Input'!E10:G10)<3,CA22,\"\"))","v":7.5},null,null,null,null,null,{"$f":"IF(COUNTA('Data Input'!E15)=1,AVERAGE('Data Input'!E15:G15),NA())","v":{"$error":"#N/A"}},{"$f":"CH22","v":{"$error":"#N/A"}},{"$error":"#N/A"},null,null,null,null,{"$error":"#N/A"},{"$error":"#N/A"},{"$f":"MIN('Data Input'!$E$8:$G$25,$H$9,$H$11)-((MAX('Data Input'!$E$8:$G$25,$H$9,$H$11)-MIN('Data Input'!$E$8:$G$25,$H$9,$H$11))/4)","v":0},{"$f":"IF(CS22=0,10,MAX('Data Input'!$E$8:$G$25,$H$9,$H$11)+((MAX('Data Input'!$E$8:$G$25,$H$9,$H$11)-MIN('Data Input'!$E$8:$G$25,$H$9,$H$11))/4))","v":10},0,null,{"$f":"IF(COUNTA('Data Input'!E15)=1,MAX('Data Input'!E15:G15)-MIN('Data Input'!E15:G15),NA())","v":{"$error":"#N/A"}},{"$error":"#DIV/0!"},{"$f":"$CU$12*IF(COUNT('Data Input'!E15:G15)=2,3.268,2.574)","v":{"$error":"#VALUE!"}},{"$f":"IF(COUNTA('Data Input'!E15)=1,MAX('Data Input'!E15:G15)-MIN('Data Input'!E15:G15),\"\")","v":""}]
[null,null,null,null,null,null,null,null,null,null,null,null,null,null,null,null,null,null,null,null,null,null,null,null,null,null,null,null,null,null,null,null,null,null,null,null,null,null,null,null,null,null,null,null,null,null,null,null,null,null,null,null,null,null,null,null,null,null,null,null,null,null,null,null,null,null,null,null,null,null,null,null,null,null,3,1,3,9,null,null,null,null,null,null,null,{"$f":"IF(COUNTA('Data Input'!E16)=1,AVERAGE('Data Input'!E16:G16),NA())","v":{"$error":"#N/A"}},{"$f":"CH23","v":{"$error":"#N/A"}},{"$error":"#N/A"},null,null,null,null,{"$error":"#N/A"},{"$error":"#N/A"},{"$f":"MIN('Data Input'!$E$8:$G$25,$H$9,$H$11)-((MAX('Data Input'!$E$8:$G$25,$H$9,$H$11)-MIN('Data Input'!$E$8:$G$25,$H$9,$H$11))/4)","v":0},{"$f":"IF(CS23=0,10,MAX('Data Input'!$E$8:$G$25,$H$9,$H$11)+((MAX('Data Input'!$E$8:$G$25,$H$9,$H$11)-MIN('Data Input'!$E$8:$G$25,$H$9,$H$11))/4))","v":10},0,null,{"$f":"IF(COUNTA('Data Input'!E16)=1,MAX('Data Input'!E16:G16)-MIN('Data Input'!E16:G16),NA())","v":{"$error":"#N/A"}},{"$error":"#DIV/0!"},{"$f":"$CU$12*IF(COUNT('Data Input'!E16:G16)=2,3.268,2.574)","v":{"$error":"#VALUE!"}},{"$f":"IF(COUNTA('Data Input'!E16)=1,MAX('Data Input'!E16:G16)-MIN('Data Input'!E16:G16),\"\")","v":""}]
[null,null,null,null,null,null,null,null,null,null,null,null,null,null,null,null,null,null,null,null,null,null,null,null,null,null,null,null,null,null,null,null,null,null,null,null,null,null,null,null,null,null,null,null,null,null,null,null,null,null,null,null,null,null,null,null,null,null,null,null,null,null,null,null,null,null,null,null,null,null,null,null,null,null,null,null,4,10,null,null,null,null,null,null,null,{"$f":"IF(COUNTA('Data Input'!E17)=1,AVERAGE('Data Input'!E17:G17),NA())","v":{"$error":"#N/A"}},{"$f":"CH24","v":{"$error":"#N/A"}},{"$error":"#N/A"},null,null,null,null,{"$error":"#N/A"},{"$error":"#N/A"},{"$f":"MIN('Data Input'!$E$8:$G$25,$H$9,$H$11)-((MAX('Data Input'!$E$8:$G$25,$H$9,$H$11)-MIN('Data Input'!$E$8:$G$25,$H$9,$H$11))/4)","v":0},{"$f":"IF(CS24=0,10,MAX('Data Input'!$E$8:$G$25,$H$9,$H$11)+((MAX('Data Input'!$E$8:$G$25,$H$9,$H$11)-MIN('Data Input'!$E$8:$G$25,$H$9,$H$11))/4))","v":10},0,null,{"$f":"IF(COUNTA('Data Input'!E17)=1,MAX('Data Input'!E17:G17)-MIN('Data Input'!E17:G17),NA())","v":{"$error":"#N/A"}},{"$error":"#DIV/0!"},{"$f":"$CU$12*IF(COUNT('Data Input'!E17:G17)=2,3.268,2.574)","v":{"$error":"#VALUE!"}},{"$f":"IF(COUNTA('Data Input'!E17)=1,MAX('Data Input'!E17:G17)-MIN('Data Input'!E17:G17),\"\")","v":""}]
[null,null,null,null,null,null,null,null,null,null,null,null,null,null,null,null,null,null,null,null,null,null,null,null,null,null,null,null,null,null,null,null,null,null,null,null,null,null,null,null,null,null,null,null,null,null,null,null,null,null,null,null,null,null,null,null,null,null,null,null,null,null,null,null,null,null,null,null,null,null,null,null,null,null,null,null,4,11,{"$f":"BZ25-0.5","v":10.5},{"$f":"IF(COUNT('Data Input'!E11:G11)=3,BZ25,IF(COUNT('Data Input'!E11:G11)<3,CA25,\"\"))","v":10.5},null,null,null,null,null,{"$f":"IF(COUNTA('Data Input'!E18)=1,AVERAGE('Data Input'!E18:G18),NA())","v":{"$error":"#N/A"}},{"$f":"CH25","v":{"$error":"#N/A"}},{"$error":"#N/A"},null,null,null,null,{"$error":"#N/A"},{"$error":"#N/A"},{"$f":"MIN('Data Input'!$E$8:$G$25,$H$9,$H$11)-((MAX('Data Input'!$E$8:$G$25,$H$9,$H$11)-MIN('Data Input'!$E$8:$G$25,$H$9,$H$11))/4)","v":0},{"$f":"IF(CS25=0,10,MAX('Data Input'!$E$8:$G$25,$H$9,$H$11)+((MAX('Data Input'!$E$8:$G$25,$H$9,$H$11)-MIN('Data Input'!$E$8:$G$25,$H$9,$H$11))/4))","v":10},0,null,{"$f":"IF(COUNTA('Data Input'!E18)=1,MAX('Data Input'!E18:G18)-MIN('Data Input'!E18:G18),NA())","v":{"$error":"#N/A"}},{"$error":"#DIV/0!"},{"$f":"$CU$12*IF(COUNT('Data Input'!E18:G18)=2,3.268,2.574)","v":{"$error":"#VALUE!"}},{"$f":"IF(COUNTA('Data Input'!E18)=1,MAX('Data Input'!E18:G18)-MIN('Data Input'!E18:G18),\"\")","v":""}]
[null,null,"Operator averages",1,{"$f":"IF(COUNT('Data Input'!E8:G13)>0,AVERAGE('Data Input'!E8:G13),\"\")","v":""},null,null,null,null,null,null,null,null,null,null,null,null,null,null,null,null,null,null,null,null,null,null,null,null,null,null,null,null,null,null,null,null,null,null,null,null,null,null,null,null,null,null,null,null,null,null,null,null,null,null,null,null,null,null,null,null,null,null,null,null,null,null,null,null,null,null,null,null,null,null,null,4,12,null,null,null,null,null,null,null,{"$f":"IF(COUNTA('Data Input'!E19)=1,AVERAGE('Data Input'!E19:G19),NA())","v":{"$error":"#N/A"}},{"$f":"CH26","v":{"$error":"#N/A"}},{"$error":"#N/A"},null,null,null,null,{"$error":"#N/A"},{"$error":"#N/A"},{"$f":"MIN('Data Input'!$E$8:$G$25,$H$9,$H$11)-((MAX('Data Input'!$E$8:$G$25,$H$9,$H$11)-MIN('Data Input'!$E$8:$G$25,$H$9,$H$11))/4)","v":0},{"$f":"IF(CS26=0,10,MAX('Data Input'!$E$8:$G$25,$H$9,$H$11)+((MAX('Data Input'!$E$8:$G$25,$H$9,$H$11)-MIN('Data Input'!$E$8:$G$25,$H$9,$H$11))/4))","v":10},0,null,{"$f":"IF(COUNTA('Data Input'!E19)=1,MAX('Data Input'!E19:G19)-MIN('Data Input'!E19:G19),NA())","v":{"$error":"#N/A"}},{"$error":"#DIV/0!"},{"$f":"$CU$12*IF(COUNT('Data Input'!E19:G19)=2,3.268,2.574)","v":{"$error":"#VALUE!"}},{"$f":"IF(COUNTA('Data Input'!E19)=1,MAX('Data Input'!E19:G19)-MIN('Data Input'!E19:G19),\"\")","v":""}]
[null,null,null,2,{"$f":"IF(COUNT('Data Input'!E14:G19)>0,AVERAGE('Data Input'!E14:G19),\"\")","v":""},null,null,null,null,null,null,null,null,null,null,null,null,null,null,null,null,null,null,null,null,null,null,null,null,null,null,null,null,null,null,null,null,null,null,null,null,null,null,null,null,null,null,null,null,null,null,null,null,null,null,null,null,null,null,null,null,null,null,null,null,null,null,null,null,null,null,null,null,null,null,null,5,13,null,null,null,null,null,null,null,{"$f":"IF(COUNTA('Data Input'!E20)=1,AVERAGE('Data Input'!E20:G20),NA())","v":{"$error":"#N/A"}},{"$f":"CH27","v":{"$error":"#N/A"}},{"$error":"#N/A"},null,null,null,null,{"$error":"#N/A"},{"$error":"#N/A"},{"$f":"MIN('Data Input'!$E$8:$G$25,$H$9,$H$11)-((MAX('Data Input'!$E$8:$G$25,$H$9,$H$11)-MIN('Data Input'!$E$8:$G$25,$H$9,$H$11))/4)","v":0},{"$f":"IF(CS27=0,10,MAX('Data Input'!$E$8:$G$25,$H$9,$H$11)+((MAX('Data Input'!$E$8:$G$25,$H$9,$H$11)-MIN('Data Input'!$E$8:$G$25,$H$9,$H$11))/4))","v":10},0,null,{"$f":"IF(COUNTA('Data Input'!E20)=1,MAX('Data Input'!E20:G20)-MIN('Data Input'!E20:G20),NA())","v":{"$error":"#N/A"}},{"$error":"#DIV/0!"},{"$f":"$CU$12*IF(COUNT('Data Input'!E20:G20)=2,3.268,2.574)","v":{"$error":"#VALUE!"}},{"$f":"IF(COUNTA('Data Input'!E20)=1,MAX('Data Input'!E20:G20)-MIN('Data Input'!E20:G20),\"\")","v":""}]
[null,null,null,3,{"$f":"IF(COUNT('Data Input'!E20:G25)>0,AVERAGE('Data Input'!E20:G25),\"\")","v":""},null,null,null,null,null,null,null,null,null,null,null,null,null,null,null,null,null,null,null,null,null,null,null,null,null,null,null,null,null,null,null,null,null,null,null,null,null,null,null,null,null,null,null,null,null,null,null,null,null,null,null,null,null,null,null,null,null,null,null,null,null,null,null,null,null,null,null,null,null,null,null,5,14,{"$f":"BZ28-0.5","v":13.5},{"$f":"IF(COUNT('Data Input'!E12:G12)=3,BZ28,IF(COUNT('Data Input'!E12:G12)<3,CA28,\"\"))","v":13.5},null,null,null,null,null,{"$f":"IF(COUNTA('Data Input'!E21)=1,AVERAGE('Data Input'!E21:G21),NA())","v":{"$error":"#N/A"}},{"$f":"CH28","v":{"$error":"#N/A"}},{"$error":"#N/A"},null,null,null,null,{"$error":"#N/A"},{"$error":"#N/A"},{"$f":"MIN('Data Input'!$E$8:$G$25,$H$9,$H$11)-((MAX('Data Input'!$E$8:$G$25,$H$9,$H$11)-MIN('Data Input'!$E$8:$G$25,$H$9,$H$11))/4)","v":0},{"$f":"IF(CS28=0,10,MAX('Data Input'!$E$8:$G$25,$H$9,$H$11)+((MAX('Data Input'!$E$8:$G$25,$H$9,$H$11)-MIN('Data Input'!$E$8:$G$25,$H$9,$H$11))/4))","v":10},0,null,{"$f":"IF(COUNTA('Data Input'!E21)=1,MAX('Data Input'!E21:G21)-MIN('Data Input'!E21:G21),NA())","v":{"$error":"#N/A"}},{"$error":"#DIV/0!"},{"$f":"$CU$12*IF(COUNT('Data Input'!E21:G21)=2,3.268,2.574)","v":{"$error":"#VALUE!"}},{"$f":"IF(COUNTA('Data Input'!E21)=1,MAX('Data Input'!E21:G21)-MIN('Data Input'!E21:G21),\"\")","v":""}]
[null,null,null,null,null,null,null,null,null,null,null,null,null,null,null,null,null,null,null,null,null,null,null,null,null,null,null,null,null,null,null,null,null,null,null,null,null,null,null,null,null,null,null,null,null,null,null,null,null,null,null,null,null,null,null,null,null,null,null,null,null,null,null,null,null,null,null,null,null,null,null,null,null,null,null,null,5,15,null,null,null,null,null,null,null,{"$f":"IF(COUNTA('Data Input'!E22)=1,AVERAGE('Data Input'!E22:G22),NA())","v":{"$error":"#N/A"}},{"$f":"CH29","v":{"$error":"#N/A"}},{"$error":"#N/A"},null,null,null,null,{"$error":"#N/A"},{"$error":"#N/A"},{"$f":"MIN('Data Input'!$E$8:$G$25,$H$9,$H$11)-((MAX('Data Input'!$E$8:$G$25,$H$9,$H$11)-MIN('Data Input'!$E$8:$G$25,$H$9,$H$11))/4)","v":0},{"$f":"IF(CS29=0,10,MAX('Data Input'!$E$8:$G$25,$H$9,$H$11)+((MAX('Data Input'!$E$8:$G$25,$H$9,$H$11)-MIN('Data Input'!$E$8:$G$25,$H$9,$H$11))/4))","v":10},0,null,{"$f":"IF(COUNTA('Data Input'!E22)=1,MAX('Data Input'!E22:G22)-MIN('Data Input'!E22:G22),NA())","v":{"$error":"#N/A"}},{"$error":"#DIV/0!"},{"$f":"$CU$12*IF(COUNT('Data Input'!E22:G22)=2,3.268,2.574)","v":{"$error":"#VALUE!"}},{"$f":"IF(COUNTA('Data Input'!E22)=1,MAX('Data Input'!E22:G22)-MIN('Data Input'!E22:G22),\"\")","v":""}]
[null,null,null,null,null,null,null,null,null,null,null,null,null,null,null,null,null,null,null,null,null,null,null,null,null,null,null,null,null,null,null,null,null,null,null,null,null,null,null,null,null,null,null,null,null,null,null,null,null,null,null,null,null,null,null,null,null,null,null,null,null,null,null,null,null,null,null,null,null,null,null,null,null,null,null,null,6,16,null,null,null,null,null,null,null,{"$f":"IF(COUNTA('Data Input'!E23)=1,AVERAGE('Data Input'!E23:G23),NA())","v":{"$error":"#N/A"}},{"$f":"CH30","v":{"$error":"#N/A"}},{"$error":"#N/A"},null,null,null,null,{"$error":"#N/A"},{"$error":"#N/A"},{"$f":"MIN('Data Input'!$E$8:$G$25,$H$9,$H$11)-((MAX('Data Input'!$E$8:$G$25,$H$9,$H$11)-MIN('Data Input'!$E$8:$G$25,$H$9,$H$11))/4)","v":0},{"$f":"IF(CS30=0,10,MAX('Data Input'!$E$8:$G$25,$H$9,$H$11)+((MAX('Data Input'!$E$8:$G$25,$H$9,$H$11)-MIN('Data Input'!$E$8:$G$25,$H$9,$H$11))/4))","v":10},0,null,{"$f":"IF(COUNTA('Data Input'!E23)=1,MAX('Data Input'!E23:G23)-MIN('Data Input'!E23:G23),NA())","v":{"$error":"#N/A"}},{"$error":"#DIV/0!"},{"$f":"$CU$12*IF(COUNT('Data Input'!E23:G23)=2,3.268,2.574)","v":{"$error":"#VALUE!"}},{"$f":"IF(COUNTA('Data Input'!E23)=1,MAX('Data Input'!E23:G23)-MIN('Data Input'!E23:G23),\"\")","v":""}]
[null,null,null,null,null,null,null,null,null,null,null,null,null,null,null,null,null,null,null,null,null,null,null,null,null,null,null,null,null,null,null,null,null,null,null,null,null,null,null,null,null,null,null,null,null,null,null,null,null,null,null,null,null,null,null,null,null,null,null,null,null,null,null,null,null,null,null,null,null,null,null,null,null,null,null,null,6,17,{"$f":"BZ31-0.5","v":16.5},{"$f":"IF(COUNT('Data Input'!E13:G13)=3,BZ31,IF(COUNT('Data Input'!E13:G13)<3,CA31,\"\"))","v":16.5},null,null,null,null,null,{"$f":"IF(COUNTA('Data Input'!E24)=1,AVERAGE('Data Input'!E24:G24),NA())","v":{"$error":"#N/A"}},{"$f":"CH31","v":{"$error":"#N/A"}},{"$error":"#N/A"},null,null,null,null,{"$error":"#N/A"},{"$error":"#N/A"},{"$f":"MIN('Data Input'!$E$8:$G$25,$H$9,$H$11)-((MAX('Data Input'!$E$8:$G$25,$H$9,$H$11)-MIN('Data Input'!$E$8:$G$25,$H$9,$H$11))/4)","v":0},{"$f":"IF(CS31=0,10,MAX('Data Input'!$E$8:$G$25,$H$9,$H$11)+((MAX('Data Input'!$E$8:$G$25,$H$9,$H$11)-MIN('Data Input'!$E$8:$G$25,$H$9,$H$11))/4))","v":10},0,null,{"$f":"IF(COUNTA('Data Input'!E24)=1,MAX('Data Input'!E24:G24)-MIN('Data Input'!E24:G24),NA())","v":{"$error":"#N/A"}},{"$error":"#DIV/0!"},{"$f":"$CU$12*IF(COUNT('Data Input'!E24:G24)=2,3.268,2.574)","v":{"$error":"#VALUE!"}},{"$f":"IF(COUNTA('Data Input'!E24)=1,MAX('Data Input'!E24:G24)-MIN('Data Input'!E24:G24),\"\")","v":""}]
[null,null,null,null,null,null,null,null,null,null,null,null,null,null,null,null,null,null,null,null,null,null,null,null,null,null,null,null,null,null,null,null,null,null,null,null,null,null,null,null,null,null,null,null,null,null,null,null,null,null,null,null,null,null,null,null,null,null,null,null,null,null,null,null,null,null,null,null,null,null,null,null,null,null,null,null,6,18,null,null,null,null,null,null,null,{"$f":"IF(COUNTA('Data Input'!E25)=1,AVERAGE('Data Input'!E25:G25),NA())","v":{"$error":"#N/A"}},{"$f":"CH32","v":{"$error":"#N/A"}},{"$error":"#N/A"},null,null,null,null,{"$error":"#N/A"},{"$error":"#N/A"},{"$f":"MIN('Data Input'!$E$8:$G$25,$H$9,$H$11)-((MAX('Data Input'!$E$8:$G$25,$H$9,$H$11)-MIN('Data Input'!$E$8:$G$25,$H$9,$H$11))/4)","v":0},{"$f":"IF(CS32=0,10,MAX('Data Input'!$E$8:$G$25,$H$9,$H$11)+((MAX('Data Input'!$E$8:$G$25,$H$9,$H$11)-MIN('Data Input'!$E$8:$G$25,$H$9,$H$11))/4))","v":10},0,null,{"$f":"IF(COUNTA('Data Input'!E25)=1,MAX('Data Input'!E25:G25)-MIN('Data Input'!E25:G25),NA())","v":{"$error":"#N/A"}},{"$error":"#DIV/0!"},{"$f":"$CU$12*IF(COUNT('Data Input'!E25:G25)=2,3.268,2.574)","v":{"$error":"#VALUE!"}},{"$f":"IF(COUNTA('Data Input'!E25)=1,MAX('Data Input'!E25:G25)-MIN('Data Input'!E25:G25),\"\")","v":""}]
[null,null,null,null,null,null,null,null,null,null,null,null,null,null,null,null,null,null,null,null,null,null,null,null,null,null,null,null,null,null,null,null,null,null,null,null,null,null,null,null,null,null,null,null,null,null,null,null,null,null,null,null,null,null,null,null,null,null,null,null,null,null,null,null,null,null,null,null,null,null,null,null,null,null,null,null,1,19,null,null,null,null,null,null,null,null,null,null,null,null,null,null,{"$error":"#N/A"},{"$error":"#N/A"},{"$f":"MIN('Data Input'!$E$8:$G$25,$H$9,$H$11)-((MAX('Data Input'!$E$8:$G$25,$H$9,$H$11)-MIN('Data Input'!$E$8:$G$25,$H$9,$H$11))/4)","v":0},{"$f":"IF(CS33=0,10,MAX('Data Input'!$E$8:$G$25,$H$9,$H$11)+((MAX('Data Input'!$E$8:$G$25,$H$9,$H$11)-MIN('Data Input'!$E$8:$G$25,$H$9,$H$11))/4))","v":10},{"$f":"IF(CQ33<0,0,CQ33)","v":0}]
[null,null,null,null,null,null,null,null,null,null,null,null,null,null,null,null,null,null,null,null,null,null,null,null,null,null,null,null,null,null,null,null,null,null,null,null,null,null,null,null,null,null,null,null,null,null,null,null,null,null,null,null,null,null,null,null,null,null,null,null,null,null,null,null,null,null,null,null,null,null,null,null,null,null,null,null,1,20,{"$f":"BZ34-0.5","v":19.5},{"$f":"IF(COUNT('Data Input'!E14:G14)=3,BZ34,IF(COUNT('Data Input'!E14:G14)<3,CA34,\"\"))","v":19.5},null,null,null,null,null,null,null,null,null,null,null,null,{"$error":"#N/A"},{"$error":"#N/A"},{"$f":"MIN('Data Input'!$E$8:$G$25,$H$9,$H$11)-((MAX('Data Input'!$E$8:$G$25,$H$9,$H$11)-MIN('Data Input'!$E$8:$G$25,$H$9,$H$11))/4)","v":0},{"$f":"IF(CS34=0,10,MAX('Data Input'!$E$8:$G$25,$H$9,$H$11)+((MAX('Data Input'!$E$8:$G$25,$H$9,$H$11)-MIN('Data Input'!$E$8:$G$25,$H$9,$H$11))/4))","v":10},0]
[null,null,null,null,null,null,null,null,null,null,null,null,null,null,null,null,null,null,null,null,null,null,null,null,null,null,null,null,null,null,null,null,null,null,null,null,null,null,null,null,null,null,null,null,null,null,null,null,null,null,null,null,null,null,null,null,null,null,null,null,null,null,null,null,null,null,null,null,null,null,null,null,null,null,null,null,1,21,null,null,null,null,null,null,null,null,null,null,null,null,null,null,{"$error":"#N/A"},{"$error":"#N/A"},{"$f":"MIN('Data Input'!$E$8:$G$25,$H$9,$H$11)-((MAX('Data Input'!$E$8:$G$25,$H$9,$H$11)-MIN('Data Input'!$E$8:$G$25,$H$9,$H$11))/4)","v":0},{"$f":"IF(CS35=0,10,MAX('Data Input'!$E$8:$G$25,$H$9,$H$11)+((MAX('Data Input'!$E$8:$G$25,$H$9,$H$11)-MIN('Data Input'!$E$8:$G$25,$H$9,$H$11))/4))","v":10},0]
[null,null,null,null,null,null,null,null,null,null,null,null,null,null,null,null,null,null,null,null,null,null,null,null,null,null,null,null,null,null,null,null,null,null,null,null,null,null,null,null,null,null,null,null,null,null,null,null,null,null,null,null,null,null,null,null,null,null,null,null,null,null,null,null,null,null,null,null,null,null,null,null,null,null,null,null,2,22,null,null,null,null,null,null,null,null,null,null,null,null,null,null,{"$error":"#N/A"},{"$error":"#N/A"},{"$f":"MIN('Data Input'!$E$8:$G$25,$H$9,$H$11)-((MAX('Data Input'!$E$8:$G$25,$H$9,$H$11)-MIN('Data Input'!$E$8:$G$25,$H$9,$H$11))/4)","v":0},{"$f":"IF(CS36=0,10,MAX('Data Input'!$E$8:$G$25,$H$9,$H$11)+((MAX('Data Input'!$E$8:$G$25,$H$9,$H$11)-MIN('Data Input'!$E$8:$G$25,$H$9,$H$11))/4))","v":10},0]
[null,null,null,null,null,null,null,null,null,null,null,null,null,null,null,null,null,null,null,null,null,null,null,null,null,null,null,null,null,null,null,null,null,null,null,null,null,null,null,null,null,null,null,null,null,null,null,null,null,null,null,null,null,null,null,null,null,null,null,null,null,null,null,null,null,null,null,null,null,null,null,null,null,null,null,null,2,23,{"$f":"BZ37-0.5","v":22.5},{"$f":"IF(COUNT('Data Input'!E15:G15)=3,BZ37,IF(COUNT('Data Input'!E15:G15)<3,CA37,\"\"))","v":22.5},null,null,null,null,null,null,null,null,null,null,null,null,{"$error":"#N/A"},{"$error":"#N/A"},{"$f":"MIN('Data Input'!$E$8:$G$25,$H$9,$H$11)-((MAX('Data Input'!$E$8:$G$25,$H$9,$H$11)-MIN('Data Input'!$E$8:$G$25,$H$9,$H$11))/4)","v":0},{"$f":"IF(CS37=0,10,MAX('Data Input'!$E$8:$G$25,$H$9,$H$11)+((MAX('Data Input'!$E$8:$G$25,$H$9,$H$11)-MIN('Data Input'!$E$8:$G$25,$H$9,$H$11))/4))","v":10},0]
[null,null,null,null,null,null,null,null,null,null,null,null,null,null,null,null,null,null,null,null,null,null,null,null,null,null,null,null,null,null,null,null,null,null,null,null,null,null,null,null,null,null,null,null,null,null,null,null,null,null,null,null,null,null,null,null,null,null,null,null,null,null,null,null,null,null,null,null,null,null,null,null,null,null,null,null,2,24,null,null,null,null,null,null,null,null,null,null,null,null,null,null,{"$error":"#N/A"},{"$error":"#N/A"},{"$f":"MIN('Data Input'!$E$8:$G$25,$H$9,$H$11)-((MAX('Data Input'!$E$8:$G$25,$H$9,$H$11)-MIN('Data Input'!$E$8:$G$25,$H$9,$H$11))/4)","v":0},{"$f":"IF(CS38=0,10,MAX('Data Input'!$E$8:$G$25,$H$9,$H$11)+((MAX('Data Input'!$E$8:$G$25,$H$9,$H$11)-MIN('Data Input'!$E$8:$G$25,$H$9,$H$11))/4))","v":10},0]
[null,null,null,null,null,null,null,null,null,null,null,null,null,null,null,null,null,null,null,null,null,null,null,null,null,null,null,null,null,null,null,null,null,null,null,null,null,null,null,null,null,null,null,null,null,null,null,null,null,null,null,null,null,null,null,null,null,null,null,null,null,null,null,null,null,null,null,null,null,null,null,null,null,null,null,null,3,25,null,null,null,null,null,null,null,null,null,null,null,null,null,null,{"$error":"#N/A"},{"$error":"#N/A"},{"$f":"MIN('Data Input'!$E$8:$G$25,$H$9,$H$11)-((MAX('Data Input'!$E$8:$G$25,$H$9,$H$11)-MIN('Data Input'!$E$8:$G$25,$H$9,$H$11))/4)","v":0},{"$f":"IF(CS39=0,10,MAX('Data Input'!$E$8:$G$25,$H$9,$H$11)+((MAX('Data Input'!$E$8:$G$25,$H$9,$H$11)-MIN('Data Input'!$E$8:$G$25,$H$9,$H$11))/4))","v":10},0]
[null,null,null,null,null,null,null,null,null,null,null,null,null,null,null,null,null,null,null,null,null,null,null,null,null,null,null,null,null,null,null,null,null,null,null,null,null,null,null,null,null,null,null,null,null,null,null,null,null,null,null,null,null,null,null,null,null,null,null,null,null,null,null,null,null,null,null,null,null,null,null,null,null,null,null,null,3,26,{"$f":"BZ40-0.5","v":25.5},{"$f":"IF(COUNT('Data Input'!E16:G16)=3,BZ40,IF(COUNT('Data Input'!E16:G16)<3,CA40,\"\"))","v":25.5},null,null,null,null,null,null,null,null,null,null,null,null,{"$error":"#N/A"},{"$error":"#N/A"},{"$f":"MIN('Data Input'!$E$8:$G$25,$H$9,$H$11)-((MAX('Data Input'!$E$8:$G$25,$H$9,$H$11)-MIN('Data Input'!$E$8:$G$25,$H$9,$H$11))/4)","v":0},{"$f":"IF(CS40=0,10,MAX('Data Input'!$E$8:$G$25,$H$9,$H$11)+((MAX('Data Input'!$E$8:$G$25,$H$9,$H$11)-MIN('Data Input'!$E$8:$G$25,$H$9,$H$11))/4))","v":10},0]
[null,null,null,null,null,null,null,null,null,null,null,null,null,null,null,null,null,null,null,null,null,null,null,null,null,null,null,null,null,null,null,null,null,null,null,null,null,null,null,null,null,null,null,null,null,null,null,null,null,null,null,null,null,null,null,null,null,null,null,null,null,null,null,null,null,null,null,null,null,null,null,null,null,null,null,null,3,27,null,null,null,null,null,null,null,null,null,null,null,null,null,null,{"$error":"#N/A"},{"$error":"#N/A"},{"$f":"MIN('Data Input'!$E$8:$G$25,$H$9,$H$11)-((MAX('Data Input'!$E$8:$G$25,$H$9,$H$11)-MIN('Data Input'!$E$8:$G$25,$H$9,$H$11))/4)","v":0},{"$f":"IF(CS41=0,10,MAX('Data Input'!$E$8:$G$25,$H$9,$H$11)+((MAX('Data Input'!$E$8:$G$25,$H$9,$H$11)-MIN('Data Input'!$E$8:$G$25,$H$9,$H$11))/4))","v":10},0]
[null,null,null,null,null,null,null,null,null,null,null,null,null,null,null,null,null,null,null,null,null,null,null,null,null,null,null,null,null,null,null,null,null,null,null,null,null,null,null,null,null,null,null,null,null,null,null,null,null,null,null,null,null,null,null,null,null,null,null,null,null,null,null,null,null,null,null,null,null,null,null,null,null,null,null,null,4,28,null,null,null,null,null,null,null,null,null,null,null,null,null,null,{"$error":"#N/A"},{"$error":"#N/A"},{"$f":"MIN('Data Input'!$E$8:$G$25,$H$9,$H$11)-((MAX('Data Input'!$E$8:$G$25,$H$9,$H$11)-MIN('Data Input'!$E$8:$G$25,$H$9,$H$11))/4)","v":0},{"$f":"IF(CS42=0,10,MAX('Data Input'!$E$8:$G$25,$H$9,$H$11)+((MAX('Data Input'!$E$8:$G$25,$H$9,$H$11)-MIN('Data Input'!$E$8:$G$25,$H$9,$H$11))/4))","v":10},0]
[null,null,null,null,null,null,null,null,null,null,null,null,null,null,null,null,null,null,null,null,null,null,null,null,null,null,null,null,null,null,null,null,null,null,null,null,null,null,null,null,null,null,null,null,null,null,null,null,null,null,null,null,null,null,null,null,null,null,null,null,null,null,null,null,null,null,null,null,null,null,null,null,null,null,null,null,4,29,{"$f":"BZ43-0.5","v":28.5},{"$f":"IF(COUNT('Data Input'!E17:G17)=3,BZ43,IF(COUNT('Data Input'!E17:G17)<3,CA43,\"\"))","v":28.5},null,null,null,null,null,null,null,null,null,null,null,null,{"$error":"#N/A"},{"$error":"#N/A"},{"$f":"MIN('Data Input'!$E$8:$G$25,$H$9,$H$11)-((MAX('Data Input'!$E$8:$G$25,$H$9,$H$11)-MIN('Data Input'!$E$8:$G$25,$H$9,$H$11))/4)","v":0},{"$f":"IF(CS43=0,10,MAX('Data Input'!$E$8:$G$25,$H$9,$H$11)+((MAX('Data Input'!$E$8:$G$25,$H$9,$H$11)-MIN('Data Input'!$E$8:$G$25,$H$9,$H$11))/4))","v":10},0]
[null,null,null,null,null,null,null,null,null,null,null,null,null,null,null,null,null,null,null,null,null,null,null,null,null,null,null,null,null,null,null,null,null,null,null,null,null,null,null,null,null,null,null,null,null,null,null,null,null,null,null,null,null,null,null,null,null,null,null,null,null,null,null,null,null,null,null,null,null,null,null,null,null,null,null,null,4,30,null,null,null,null,null,null,null,null,null,null,null,null,null,null,{"$error":"#N/A"},{"$error":"#N/A"},{"$f":"MIN('Data Input'!$E$8:$G$25,$H$9,$H$11)-((MAX('Data Input'!$E$8:$G$25,$H$9,$H$11)-MIN('Data Input'!$E$8:$G$25,$H$9,$H$11))/4)","v":0},{"$f":"IF(CS44=0,10,MAX('Data Input'!$E$8:$G$25,$H$9,$H$11)+((MAX('Data Input'!$E$8:$G$25,$H$9,$H$11)-MIN('Data Input'!$E$8:$G$25,$H$9,$H$11))/4))","v":10},0]
[null,null,null,null,null,null,null,null,null,null,null,null,null,null,null,null,null,null,null,null,null,null,null,null,null,null,null,null,null,null,null,null,null,null,null,null,null,null,null,null,null,null,null,null,null,null,null,null,null,null,null,null,null,null,null,null,null,null,null,null,null,null,null,null,null,null,null,null,null,null,null,null,null,null,null,null,5,31,null,null,null,null,null,null,null,null,null,null,null,null,null,null,{"$error":"#N/A"},{"$error":"#N/A"},{"$f":"MIN('Data Input'!$E$8:$G$25,$H$9,$H$11)-((MAX('Data Input'!$E$8:$G$25,$H$9,$H$11)-MIN('Data Input'!$E$8:$G$25,$H$9,$H$11))/4)","v":0},{"$f":"IF(CS45=0,10,MAX('Data Input'!$E$8:$G$25,$H$9,$H$11)+((MAX('Data Input'!$E$8:$G$25,$H$9,$H$11)-MIN('Data Input'!$E$8:$G$25,$H$9,$H$11))/4))","v":10},0]
[null,null,null,null,null,null,null,null,null,null,null,null,null,null,null,null,null,null,null,null,null,null,null,null,null,null,null,null,null,null,null,null,null,null,null,null,null,null,null,null,null,null,null,null,null,null,null,null,null,null,null,null,null,null,null,null,null,null,null,null,null,null,null,null,null,null,null,null,null,null,null,null,null,null,null,null,5,32,{"$f":"BZ46-0.5","v":31.5},{"$f":"IF(COUNT('Data Input'!E18:G18)=3,BZ46,IF(COUNT('Data Input'!E18:G18)<3,CA46,\"\"))","v":31.5},null,null,null,null,null,null,null,null,null,null,null,null,{"$error":"#N/A"},{"$error":"#N/A"},{"$f":"MIN('Data Input'!$E$8:$G$25,$H$9,$H$11)-((MAX('Data Input'!$E$8:$G$25,$H$9,$H$11)-MIN('Data Input'!$E$8:$G$25,$H$9,$H$11))/4)","v":0},{"$f":"IF(CS46=0,10,MAX('Data Input'!$E$8:$G$25,$H$9,$H$11)+((MAX('Data Input'!$E$8:$G$25,$H$9,$H$11)-MIN('Data Input'!$E$8:$G$25,$H$9,$H$11))/4))","v":10},0]
[null,null,null,null,null,null,null,null,null,null,null,null,null,null,null,null,null,null,null,null,null,null,null,null,null,null,null,null,null,null,null,null,null,null,null,null,null,null,null,null,null,null,null,null,null,null,null,null,null,null,null,null,null,null,null,null,null,null,null,null,null,null,null,null,null,null,null,null,null,null,null,null,null,null,null,null,5,33,null,null,null,null,null,null,null,null,null,null,null,null,null,null,{"$error":"#N/A"},{"$error":"#N/A"},{"$f":"MIN('Data Input'!$E$8:$G$25,$H$9,$H$11)-((MAX('Data Input'!$E$8:$G$25,$H$9,$H$11)-MIN('Data Input'!$E$8:$G$25,$H$9,$H$11))/4)","v":0},{"$f":"IF(CS47=0,10,MAX('Data Input'!$E$8:$G$25,$H$9,$H$11)+((MAX('Data Input'!$E$8:$G$25,$H$9,$H$11)-MIN('Data Input'!$E$8:$G$25,$H$9,$H$11))/4))","v":10},0]
[null,null,null,null,null,null,null,null,null,null,null,null,null,null,null,null,null,null,null,null,null,null,null,null,null,null,null,null,null,null,null,null,null,null,null,null,null,null,null,null,null,null,null,null,null,null,null,null,null,null,null,null,null,null,null,null,null,null,null,null,null,null,null,null,null,null,null,null,null,null,null,null,null,null,null,null,6,34,null,null,null,null,null,null,null,null,null,null,null,null,null,null,{"$error":"#N/A"},{"$error":"#N/A"},{"$f":"MIN('Data Input'!$E$8:$G$25,$H$9,$H$11)-((MAX('Data Input'!$E$8:$G$25,$H$9,$H$11)-MIN('Data Input'!$E$8:$G$25,$H$9,$H$11))/4)","v":0},{"$f":"IF(CS48=0,10,MAX('Data Input'!$E$8:$G$25,$H$9,$H$11)+((MAX('Data Input'!$E$8:$G$25,$H$9,$H$11)-MIN('Data Input'!$E$8:$G$25,$H$9,$H$11))/4))","v":10},0]
[null,null,null,null,null,null,null,null,null,null,null,null,null,null,null,null,null,null,null,null,null,null,null,null,null,null,null,null,null,null,null,null,null,null,null,null,null,null,null,null,null,null,null,null,null,null,null,null,null,null,null,null,null,null,null,null,null,null,null,null,null,null,null,null,null,null,null,null,null,null,null,null,null,null,null,null,6,35,{"$f":"BZ49-0.5","v":34.5},{"$f":"IF(COUNT('Data Input'!E19:G19)=3,BZ49,IF(COUNT('Data Input'!E19:G19)<3,CA49,\"\"))","v":34.5},null,null,null,null,null,null,null,null,null,null,null,null,{"$error":"#N/A"},{"$error":"#N/A"},{"$f":"MIN('Data Input'!$E$8:$G$25,$H$9,$H$11)-((MAX('Data Input'!$E$8:$G$25,$H$9,$H$11)-MIN('Data Input'!$E$8:$G$25,$H$9,$H$11))/4)","v":0},{"$f":"IF(CS49=0,10,MAX('Data Input'!$E$8:$G$25,$H$9,$H$11)+((MAX('Data Input'!$E$8:$G$25,$H$9,$H$11)-MIN('Data Input'!$E$8:$G$25,$H$9,$H$11))/4))","v":10},0]
[null,null,null,null,null,null,null,null,null,null,null,null,null,null,null,null,null,null,null,null,null,null,null,null,null,null,null,null,null,null,null,null,null,null,null,null,null,null,null,null,null,null,null,null,null,null,null,null,null,null,null,null,null,null,null,null,null,null,null,null,null,null,null,null,null,null,null,null,null,null,null,null,null,null,null,null,6,36,null,null,null,null,null,null,null,null,null,null,null,null,null,null,{"$error":"#N/A"},{"$error":"#N/A"},{"$f":"MIN('Data Input'!$E$8:$G$25,$H$9,$H$11)-((MAX('Data Input'!$E$8:$G$25,$H$9,$H$11)-MIN('Data Input'!$E$8:$G$25,$H$9,$H$11))/4)","v":0},{"$f":"IF(CS50=0,10,MAX('Data Input'!$E$8:$G$25,$H$9,$H$11)+((MAX('Data Input'!$E$8:$G$25,$H$9,$H$11)-MIN('Data Input'!$E$8:$G$25,$H$9,$H$11))/4))","v":10},0]
[null,null,null,null,null,null,null,null,null,null,null,null,null,null,null,null,null,null,null,null,null,null,null,null,null,null,null,null,null,null,null,null,null,null,null,null,null,null,null,null,null,null,null,null,null,null,null,null,null,null,null,null,null,null,null,null,null,null,null,null,null,null,null,null,null,null,null,null,null,null,null,null,null,null,null,null,1,37,null,null,null,null,null,null,null,null,null,null,null,null,null,null,{"$error":"#N/A"},{"$error":"#N/A"},{"$f":"MIN('Data Input'!$E$8:$G$25,$H$9,$H$11)-((MAX('Data Input'!$E$8:$G$25,$H$9,$H$11)-MIN('Data Input'!$E$8:$G$25,$H$9,$H$11))/4)","v":0},{"$f":"IF(CS51=0,10,MAX('Data Input'!$E$8:$G$25,$H$9,$H$11)+((MAX('Data Input'!$E$8:$G$25,$H$9,$H$11)-MIN('Data Input'!$E$8:$G$25,$H$9,$H$11))/4))","v":10},0]
[null,null,null,null,null,null,null,null,null,null,null,null,null,null,null,null,null,null,null,null,null,null,null,null,null,null,null,null,null,null,null,null,null,null,null,null,null,null,null,null,null,null,null,null,null,null,null,null,null,null,null,null,null,null,null,null,null,null,null,null,null,null,null,null,null,null,null,null,null,null,null,null,null,null,null,null,1,38,{"$f":"BZ52-0.5","v":37.5},{"$f":"IF(COUNT('Data Input'!E20:G20)=3,BZ52,IF(COUNT('Data Input'!E20:G20)<3,CA52,\"\"))","v":37.5},null,null,null,null,null,null,null,null,null,null,null,null,{"$error":"#N/A"},{"$error":"#N/A"},{"$f":"MIN('Data Input'!$E$8:$G$25,$H$9,$H$11)-((MAX('Data Input'!$E$8:$G$25,$H$9,$H$11)-MIN('Data Input'!$E$8:$G$25,$H$9,$H$11))/4)","v":0},{"$f":"IF(CS52=0,10,MAX('Data Input'!$E$8:$G$25,$H$9,$H$11)+((MAX('Data Input'!$E$8:$G$25,$H$9,$H$11)-MIN('Data Input'!$E$8:$G$25,$H$9,$H$11))/4))","v":10},0]
[null,null,null,null,null,null,null,null,null,null,null,null,null,null,null,null,null,null,null,null,null,null,null,null,null,null,null,null,null,null,null,null,null,null,null,null,null,null,null,null,null,null,null,null,null,null,null,null,null,null,null,null,null,null,null,null,null,null,null,null,null,null,null,null,null,null,null,null,null,null,null,null,null,null,null,null,1,39,null,null,null,null,null,null,null,null,null,null,null,null,null,null,{"$error":"#N/A"},{"$error":"#N/A"},{"$f":"MIN('Data Input'!$E$8:$G$25,$H$9,$H$11)-((MAX('Data Input'!$E$8:$G$25,$H$9,$H$11)-MIN('Data Input'!$E$8:$G$25,$H$9,$H$11))/4)","v":0},{"$f":"IF(CS53=0,10,MAX('Data Input'!$E$8:$G$25,$H$9,$H$11)+((MAX('Data Input'!$E$8:$G$25,$H$9,$H$11)-MIN('Data Input'!$E$8:$G$25,$H$9,$H$11))/4))","v":10},0]
[null,null,null,null,null,null,null,null,null,null,null,null,null,null,null,null,null,null,null,null,null,null,null,null,null,null,null,null,null,null,null,null,null,null,null,null,null,null,null,null,null,null,null,null,null,null,null,null,null,null,null,null,null,null,null,null,null,null,null,null,null,null,null,null,null,null,null,null,null,null,null,null,null,null,null,null,2,40,null,null,null,null,null,null,null,null,null,null,null,null,null,null,{"$error":"#N/A"},{"$error":"#N/A"},{"$f":"MIN('Data Input'!$E$8:$G$25,$H$9,$H$11)-((MAX('Data Input'!$E$8:$G$25,$H$9,$H$11)-MIN('Data Input'!$E$8:$G$25,$H$9,$H$11))/4)","v":0},{"$f":"IF(CS54=0,10,MAX('Data Input'!$E$8:$G$25,$H$9,$H$11)+((MAX('Data Input'!$E$8:$G$25,$H$9,$H$11)-MIN('Data Input'!$E$8:$G$25,$H$9,$H$11))/4))","v":10},0]
[null,null,null,null,null,null,null,null,null,null,null,null,null,null,null,null,null,null,null,null,null,null,null,null,null,null,null,null,null,null,null,null,null,null,null,null,null,null,null,null,null,null,null,null,null,null,null,null,null,null,null,null,null,null,null,null,null,null,null,null,null,null,null,null,null,null,null,null,null,null,null,null,null,null,null,null,2,41,{"$f":"BZ55-0.5","v":40.5},{"$f":"IF(COUNT('Data Input'!E21:G21)=3,BZ55,IF(COUNT('Data Input'!E21:G21)<3,CA55,\"\"))","v":40.5},null,null,null,null,null,null,null,null,null,null,null,null,{"$error":"#N/A"},{"$error":"#N/A"},{"$f":"MIN('Data Input'!$E$8:$G$25,$H$9,$H$11)-((MAX('Data Input'!$E$8:$G$25,$H$9,$H$11)-MIN('Data Input'!$E$8:$G$25,$H$9,$H$11))/4)","v":0},{"$f":"IF(CS55=0,10,MAX('Data Input'!$E$8:$G$25,$H$9,$H$11)+((MAX('Data Input'!$E$8:$G$25,$H$9,$H$11)-MIN('Data Input'!$E$8:$G$25,$H$9,$H$11))/4))","v":10},0]
[null,null,null,null,null,null,null,null,null,null,null,null,null,null,null,null,null,null,null,null,null,null,null,null,null,null,null,null,null,null,null,null,null,null,null,null,null,null,null,null,null,null,null,null,null,null,null,null,null,null,null,null,null,null,null,null,null,null,null,null,null,null,null,null,null,null,null,null,null,null,null,null,null,null,null,null,2,42,null,null,null,null,null,null,null,null,null,null,null,null,null,null,{"$error":"#N/A"},{"$error":"#N/A"},{"$f":"MIN('Data Input'!$E$8:$G$25,$H$9,$H$11)-((MAX('Data Input'!$E$8:$G$25,$H$9,$H$11)-MIN('Data Input'!$E$8:$G$25,$H$9,$H$11))/4)","v":0},{"$f":"IF(CS56=0,10,MAX('Data Input'!$E$8:$G$25,$H$9,$H$11)+((MAX('Data Input'!$E$8:$G$25,$H$9,$H$11)-MIN('Data Input'!$E$8:$G$25,$H$9,$H$11))/4))","v":10},0]
[null,null,null,null,null,null,null,null,null,null,null,null,null,null,null,null,null,null,null,null,null,null,null,null,null,null,null,null,null,null,null,null,null,null,null,null,null,null,null,null,null,null,null,null,null,null,null,null,null,null,null,null,null,null,null,null,null,null,null,null,null,null,null,null,null,null,null,null,null,null,null,null,null,null,null,null,3,43,null,null,null,null,null,null,null,null,null,null,null,null,null,null,{"$error":"#N/A"},{"$error":"#N/A"},{"$f":"MIN('Data Input'!$E$8:$G$25,$H$9,$H$11)-((MAX('Data Input'!$E$8:$G$25,$H$9,$H$11)-MIN('Data Input'!$E$8:$G$25,$H$9,$H$11))/4)","v":0},{"$f":"IF(CS57=0,10,MAX('Data Input'!$E$8:$G$25,$H$9,$H$11)+((MAX('Data Input'!$E$8:$G$25,$H$9,$H$11)-MIN('Data Input'!$E$8:$G$25,$H$9,$H$11))/4))","v":10},0]
[null,null,null,null,null,null,null,null,null,null,null,null,null,null,null,null,null,null,null,null,null,null,null,null,null,null,null,null,null,null,null,null,null,null,null,null,null,null,null,null,null,null,null,null,null,null,null,null,null,null,null,null,null,null,null,null,null,null,null,null,null,null,null,null,null,null,null,null,null,null,null,null,null,null,null,null,3,44,{"$f":"BZ58-0.5","v":43.5},{"$f":"IF(COUNT('Data Input'!E22:G22)=3,BZ58,IF(COUNT('Data Input'!E22:G22)<3,CA58,\"\"))","v":43.5},null,null,null,null,null,null,null,null,null,null,null,null,{"$error":"#N/A"},{"$error":"#N/A"},{"$f":"MIN('Data Input'!$E$8:$G$25,$H$9,$H$11)-((MAX('Data Input'!$E$8:$G$25,$H$9,$H$11)-MIN('Data Input'!$E$8:$G$25,$H$9,$H$11))/4)","v":0},{"$f":"IF(CS58=0,10,MAX('Data Input'!$E$8:$G$25,$H$9,$H$11)+((MAX('Data Input'!$E$8:$G$25,$H$9,$H$11)-MIN('Data Input'!$E$8:$G$25,$H$9,$H$11))/4))","v":10},0]
[null,null,null,null,null,null,null,null,null,null,null,null,null,null,null,null,null,null,null,null,null,null,null,null,null,null,null,null,null,null,null,null,null,null,null,null,null,null,null,null,null,null,null,null,null,null,null,null,null,null,null,null,null,null,null,null,null,null,null,null,null,null,null,null,null,null,null,null,null,null,null,null,null,null,null,null,3,45,null,null,null,null,null,null,null,null,null,null,null,null,null,null,{"$error":"#N/A"},{"$error":"#N/A"},{"$f":"MIN('Data Input'!$E$8:$G$25,$H$9,$H$11)-((MAX('Data Input'!$E$8:$G$25,$H$9,$H$11)-MIN('Data Input'!$E$8:$G$25,$H$9,$H$11))/4)","v":0},{"$f":"IF(CS59=0,10,MAX('Data Input'!$E$8:$G$25,$H$9,$H$11)+((MAX('Data Input'!$E$8:$G$25,$H$9,$H$11)-MIN('Data Input'!$E$8:$G$25,$H$9,$H$11))/4))","v":10},0]
[null,null,null,null,null,null,null,null,null,null,null,null,null,null,null,null,null,null,null,null,null,null,null,null,null,null,null,null,null,null,null,null,null,null,null,null,null,null,null,null,null,null,null,null,null,null,null,null,null,null,null,null,null,null,null,null,null,null,null,null,null,null,null,null,null,null,null,null,null,null,null,null,null,null,null,null,4,46,null,null,null,null,null,null,null,null,null,null,null,null,null,null,{"$error":"#N/A"},{"$error":"#N/A"},{"$f":"MIN('Data Input'!$E$8:$G$25,$H$9,$H$11)-((MAX('Data Input'!$E$8:$G$25,$H$9,$H$11)-MIN('Data Input'!$E$8:$G$25,$H$9,$H$11))/4)","v":0},{"$f":"IF(CS60=0,10,MAX('Data Input'!$E$8:$G$25,$H$9,$H$11)+((MAX('Data Input'!$E$8:$G$25,$H$9,$H$11)-MIN('Data Input'!$E$8:$G$25,$H$9,$H$11))/4))","v":10},0]
[null,null,null,null,null,null,null,null,null,null,null,null,null,null,null,null,null,null,null,null,null,null,null,null,null,null,null,null,null,null,null,null,null,null,null,null,null,null,null,null,null,null,null,null,null,null,null,null,null,null,null,null,null,null,null,null,null,null,null,null,null,null,null,null,null,null,null,null,null,null,null,null,null,null,null,null,4,47,{"$f":"BZ61-0.5","v":46.5},{"$f":"IF(COUNT('Data Input'!E23:G23)=3,BZ61,IF(COUNT('Data Input'!E23:G23)<3,CA61,\"\"))","v":46.5},null,null,null,null,null,null,null,null,null,null,null,null,{"$error":"#N/A"},{"$error":"#N/A"},{"$f":"MIN('Data Input'!$E$8:$G$25,$H$9,$H$11)-((MAX('Data Input'!$E$8:$G$25,$H$9,$H$11)-MIN('Data Input'!$E$8:$G$25,$H$9,$H$11))/4)","v":0},{"$f":"IF(CS61=0,10,MAX('Data Input'!$E$8:$G$25,$H$9,$H$11)+((MAX('Data Input'!$E$8:$G$25,$H$9,$H$11)-MIN('Data Input'!$E$8:$G$25,$H$9,$H$11))/4))","v":10},0]
[null,null,null,null,null,null,null,null,null,null,null,null,null,null,null,null,null,null,null,null,null,null,null,null,null,null,null,null,null,null,null,null,null,null,null,null,null,null,null,null,null,null,null,null,null,null,null,null,null,null,null,null,null,null,null,null,null,null,null,null,null,null,null,null,null,null,null,null,null,null,null,null,null,null,null,null,4,48,null,null,null,null,null,null,null,null,null,null,null,null,null,null,{"$error":"#N/A"},{"$error":"#N/A"},{"$f":"MIN('Data Input'!$E$8:$G$25,$H$9,$H$11)-((MAX('Data Input'!$E$8:$G$25,$H$9,$H$11)-MIN('Data Input'!$E$8:$G$25,$H$9,$H$11))/4)","v":0},{"$f":"IF(CS62=0,10,MAX('Data Input'!$E$8:$G$25,$H$9,$H$11)+((MAX('Data Input'!$E$8:$G$25,$H$9,$H$11)-MIN('Data Input'!$E$8:$G$25,$H$9,$H$11))/4))","v":10},0]
[null,null,null,null,null,null,null,null,null,null,null,null,null,null,null,null,null,null,null,null,null,null,null,null,null,null,null,null,null,null,null,null,null,null,null,null,null,null,null,null,null,null,null,null,null,null,null,null,null,null,null,null,null,null,null,null,null,null,null,null,null,null,null,null,null,null,null,null,null,null,null,null,null,null,null,null,5,49,null,null,null,null,null,null,null,null,null,null,null,null,null,null,{"$error":"#N/A"},{"$error":"#N/A"},{"$f":"MIN('Data Input'!$E$8:$G$25,$H$9,$H$11)-((MAX('Data Input'!$E$8:$G$25,$H$9,$H$11)-MIN('Data Input'!$E$8:$G$25,$H$9,$H$11))/4)","v":0},{"$f":"IF(CS63=0,10,MAX('Data Input'!$E$8:$G$25,$H$9,$H$11)+((MAX('Data Input'!$E$8:$G$25,$H$9,$H$11)-MIN('Data Input'!$E$8:$G$25,$H$9,$H$11))/4))","v":10},0]
[null,null,null,null,null,null,null,null,null,null,null,null,null,null,null,null,null,null,null,null,null,null,null,null,null,null,null,null,null,null,null,null,null,null,null,null,null,null,null,null,null,null,null,null,null,null,null,null,null,null,null,null,null,null,null,null,null,null,null,null,null,null,null,null,null,null,null,null,null,null,null,null,null,null,null,null,5,50,{"$f":"BZ64-0.5","v":49.5},{"$f":"IF(COUNT('Data Input'!E24:G24)=3,BZ64,IF(COUNT('Data Input'!E24:G24)<3,CA64,\"\"))","v":49.5},null,null,null,null,null,null,null,null,null,null,null,null,{"$error":"#N/A"},{"$error":"#N/A"},{"$f":"MIN('Data Input'!$E$8:$G$25,$H$9,$H$11)-((MAX('Data Input'!$E$8:$G$25,$H$9,$H$11)-MIN('Data Input'!$E$8:$G$25,$H$9,$H$11))/4)","v":0},{"$f":"IF(CS64=0,10,MAX('Data Input'!$E$8:$G$25,$H$9,$H$11)+((MAX('Data Input'!$E$8:$G$25,$H$9,$H$11)-MIN('Data Input'!$E$8:$G$25,$H$9,$H$11))/4))","v":10},0]
[null,null,null,null,null,null,null,null,null,null,null,null,null,null,null,null,null,null,null,null,null,null,null,null,null,null,null,null,null,null,null,null,null,null,null,null,null,null,null,null,null,null,null,null,null,null,null,null,null,null,null,null,null,null,null,null,null,null,null,null,null,null,null,null,null,null,null,null,null,null,null,null,null,null,null,null,5,51,null,null,null,null,null,null,null,null,null,null,null,null,null,null,{"$error":"#N/A"},{"$error":"#N/A"},{"$f":"MIN('Data Input'!$E$8:$G$25,$H$9,$H$11)-((MAX('Data Input'!$E$8:$G$25,$H$9,$H$11)-MIN('Data Input'!$E$8:$G$25,$H$9,$H$11))/4)","v":0},{"$f":"IF(CS65=0,10,MAX('Data Input'!$E$8:$G$25,$H$9,$H$11)+((MAX('Data Input'!$E$8:$G$25,$H$9,$H$11)-MIN('Data Input'!$E$8:$G$25,$H$9,$H$11))/4))","v":10},0]
[null,null,null,null,null,null,null,null,null,null,null,null,null,null,null,null,null,null,null,null,null,null,null,null,null,null,null,null,null,null,null,null,null,null,null,null,null,null,null,null,null,null,null,null,null,null,null,null,null,null,null,null,null,null,null,null,null,null,null,null,null,null,null,null,null,null,null,null,null,null,null,null,null,null,null,null,6,52,null,null,null,null,null,null,null,null,null,null,null,null,null,null,{"$error":"#N/A"},{"$error":"#N/A"},{"$f":"MIN('Data Input'!$E$8:$G$25,$H$9,$H$11)-((MAX('Data Input'!$E$8:$G$25,$H$9,$H$11)-MIN('Data Input'!$E$8:$G$25,$H$9,$H$11))/4)","v":0},{"$f":"IF(CS66=0,10,MAX('Data Input'!$E$8:$G$25,$H$9,$H$11)+((MAX('Data Input'!$E$8:$G$25,$H$9,$H$11)-MIN('Data Input'!$E$8:$G$25,$H$9,$H$11))/4))","v":10},0]
[null,null,null,null,null,null,null,null,null,null,null,null,null,null,null,null,null,null,null,null,null,null,null,null,null,null,null,null,null,null,null,null,null,null,null,null,null,null,null,null,null,null,null,null,null,null,null,null,null,null,null,null,null,null,null,null,null,null,null,null,null,null,null,null,null,null,null,null,null,null,null,null,null,null,null,null,6,53,{"$f":"BZ67-0.5","v":52.5},{"$f":"IF(COUNT('Data Input'!E25:G25)=3,BZ67,IF(COUNT('Data Input'!E25:G25)<3,CA67,\"\"))","v":52.5},null,null,null,null,null,null,null,null,null,null,null,null,{"$error":"#N/A"},{"$error":"#N/A"},{"$f":"MIN('Data Input'!$E$8:$G$25,$H$9,$H$11)-((MAX('Data Input'!$E$8:$G$25,$H$9,$H$11)-MIN('Data Input'!$E$8:$G$25,$H$9,$H$11))/4)","v":0},{"$f":"IF(CS67=0,10,MAX('Data Input'!$E$8:$G$25,$H$9,$H$11)+((MAX('Data Input'!$E$8:$G$25,$H$9,$H$11)-MIN('Data Input'!$E$8:$G$25,$H$9,$H$11))/4))","v":10},0]
[null,null,null,null,null,null,null,null,null,null,null,null,null,null,null,null,null,null,null,null,null,null,null,null,null,null,null,null,null,null,null,null,null,null,null,null,null,null,null,null,null,null,null,null,null,null,null,null,null,null,null,null,null,null,null,null,null,null,null,null,null,null,null,null,null,null,null,null,null,null,null,null,null,null,null,null,6,54,null,null,null,null,null,null,null,null,null,null,null,null,null,null,{"$error":"#N/A"},{"$error":"#N/A"},{"$f":"MIN('Data Input'!$E$8:$G$25,$H$9,$H$11)-((MAX('Data Input'!$E$8:$G$25,$H$9,$H$11)-MIN('Data Input'!$E$8:$G$25,$H$9,$H$11))/4)","v":0},{"$f":"IF(CS68=0,10,MAX('Data Input'!$E$8:$G$25,$H$9,$H$11)+((MAX('Data Input'!$E$8:$G$25,$H$9,$H$11)-MIN('Data Input'!$E$8:$G$25,$H$9,$H$11))/4))","v":10},0]